[Event "Titled Tuesday Blitz April 05 Late 2022"]
[White "Perera Alfonso, Rene Humberto"]
[Black "Levin, Anthony"]
[WhiteFideId "3514722"]
[BlackFideId "30940680"]
[WhiteElo "2313"]
[BlackElo "2026"]
[Result "1-0"]
[Round "03"]
[TimeControl "180+1"]
[Date "2022.04.06"]
[WhiteClock "0:02:09"]
[BlackClock "0:00:21"]

1. e4 {[%clk 0:02:59]}  c5 {[%clk 0:02:59]} 2. Nf3 {[%clk 0:02:57]}  d6 {[%clk 0:02:59]} 3. d4 {[%clk 0:02:57]}  cxd4 {[%clk 0:03:00]} 4. Nxd4 {[%clk 0:02:58]}  Nf6 {[%clk 0:03:01]} 5. Nc3 {[%clk 0:02:58]}  a6 {[%clk 0:03:01]} 6. Be3 {[%clk 0:02:58]}  e5 {[%clk 0:03:01]} 7. Nb3 {[%clk 0:02:58]}  h5 {[%clk 0:03:01]} 8. h3 {[%clk 0:02:55]}  Be6 {[%clk 0:03:00]} 9. Qf3 {[%clk 0:02:55]}  Nbd7 {[%clk 0:02:57]} 10. O-O-O {[%clk 0:02:54]}  Rc8 {[%clk 0:02:56]} 11. Kb1 {[%clk 0:02:53]}  Rxc3 {[%clk 0:02:31]} 12. bxc3 {[%clk 0:02:54]}  Qc7 {[%clk 0:02:32]} 13. Bg5 {[%clk 0:02:53]}  Be7 {[%clk 0:02:29]} 14. Be2 {[%clk 0:02:50]}  O-O {[%clk 0:02:23]} 15. g4 {[%clk 0:02:49]}  Re8 {[%clk 0:01:50]} 16. gxh5 {[%clk 0:02:48]}  Nxe4 {[%clk 0:01:46]} 17. Qxe4 {[%clk 0:02:47]}  Bxg5 {[%clk 0:01:46]} 18. Rhg1 {[%clk 0:02:47]}  Bh6 {[%clk 0:01:45]} 19. Bg4 {[%clk 0:02:45]}  d5 {[%clk 0:01:18]} 20. Qb4 {[%clk 0:02:43]}  f5 {[%clk 0:01:12]} 21. Be2 {[%clk 0:02:35]}  Nf6 {[%clk 0:01:05]} 22. Rg6 {[%clk 0:02:33]}  Ne4 {[%clk 0:01:03]} 23. Kb2 {[%clk 0:02:28]}  b6 {[%clk 0:00:42]} 24. f3 {[%clk 0:02:21]}  a5 {[%clk 0:00:42]} 25. Qb5 {[%clk 0:02:14]}  Bd7 {[%clk 0:00:23]} 26. Qxd5+ {[%clk 0:02:11]}  Kh7 {[%clk 0:00:23]} 27. fxe4 {[%clk 0:02:10]}  a4 {[%clk 0:00:21]} 28. Qxd7 {[%clk 0:02:09]}  Qxc3+ {[%clk 0:00:21]} 29. Kxc3 {[%clk 0:02:09]} 1-0


[Site "https://www.chess.com"]

[Event "Titled Tuesday Blitz April 05 Late 2022"]
[White "Pesotskiy, Mikhail"]
[Black "Tregubov, Pavel V."]
[WhiteFideId "34164453"]
[BlackFideId "4115341"]
[WhiteElo "2010"]
[BlackElo "2341"]
[Result "1-0"]
[Round "03"]
[TimeControl "180+1"]
[Date "2022.04.06"]
[WhiteClock "0:00:08"]
[BlackClock "0:00:21"]

1. d4 {[%clk 0:03:00]}  Nf6 {[%clk 0:02:59]} 2. c4 {[%clk 0:03:01]}  e6 {[%clk 0:02:59]} 3. Nc3 {[%clk 0:03:01]}  Bb4 {[%clk 0:02:59]} 4. Qc2 {[%clk 0:03:02]}  c5 {[%clk 0:02:59]} 5. dxc5 {[%clk 0:03:02]}  O-O {[%clk 0:02:58]} 6. a3 {[%clk 0:03:02]}  Bxc5 {[%clk 0:02:58]} 7. Nf3 {[%clk 0:03:03]}  d5 {[%clk 0:02:58]} 8. Bg5 {[%clk 0:02:53]}  d4 {[%clk 0:02:27]} 9. Bxf6 {[%clk 0:02:52]}  Qxf6 {[%clk 0:02:21]} 10. Ne4 {[%clk 0:02:52]}  Qe7 {[%clk 0:02:22]} 11. Nxc5 {[%clk 0:02:52]}  Qxc5 {[%clk 0:02:21]} 12. b4 {[%clk 0:02:53]}  Qd6 {[%clk 0:02:19]} 13. Qe4 {[%clk 0:02:44]}  Rd8 {[%clk 0:02:08]} 14. Rd1 {[%clk 0:02:41]}  Nc6 {[%clk 0:02:05]} 15. b5 {[%clk 0:02:40]}  Qxa3 {[%clk 0:01:56]} 16. bxc6 {[%clk 0:02:39]}  Qb4+ {[%clk 0:01:57]} 17. Rd2 {[%clk 0:02:24]}  bxc6 {[%clk 0:01:56]} 18. Nxd4 {[%clk 0:01:50]}  Rb8 {[%clk 0:01:40]} 19. e3 {[%clk 0:01:48]}  Bb7 {[%clk 0:01:26]} 20. Bd3 {[%clk 0:01:16]}  g6 {[%clk 0:01:23]} 21. Nc2 {[%clk 0:01:17]}  Qc3 {[%clk 0:01:16]} 22. Ke2 {[%clk 0:00:37]}  c5 {[%clk 0:01:15]} 23. Qf4 {[%clk 0:00:22]}  Ba6 {[%clk 0:01:04]} 24. Rhd1 {[%clk 0:00:06]}  Rb2 {[%clk 0:01:04]} 25. Ne1 {[%clk 0:00:05]}  Rb3 {[%clk 0:00:40]} 26. Qh4 {[%clk 0:00:05]}  Rxd3 {[%clk 0:00:34]} 27. Nxd3 {[%clk 0:00:03]}  Bxc4 {[%clk 0:00:33]} 28. Ke1 {[%clk 0:00:03]}  Bxd3 {[%clk 0:00:33]} 29. Qd8+ {[%clk 0:00:04]}  Kg7 {[%clk 0:00:29]} 30. Qxd3 {[%clk 0:00:04]}  Qb4 {[%clk 0:00:27]} 31. Qc2 {[%clk 0:00:05]}  c4 {[%clk 0:00:26]} 32. Rc1 {[%clk 0:00:05]}  c3 {[%clk 0:00:25]} 33. Rd3 {[%clk 0:00:05]}  a5 {[%clk 0:00:21]} 34. Rxc3 {[%clk 0:00:06]}  Rb2 {[%clk 0:00:21]} 35. Qd3 {[%clk 0:00:06]}  a4 {[%clk 0:00:21]} 36. Qd4+ {[%clk 0:00:07]}  Qxd4 {[%clk 0:00:21]} 37. exd4 {[%clk 0:00:08]}  a3 {[%clk 0:00:21]} 38. Rxa3 {[%clk 0:00:08]} 1-0


[Site "https://www.chess.com"]

[Event "Titled Tuesday Blitz April 05 Late 2022"]
[White "Petrova, Irina"]
[Black "Swicarz, Maciej"]
[WhiteFideId "14124122"]
[BlackFideId "1113585"]
[WhiteElo "1993"]
[BlackElo "2057"]
[Result "0-1"]
[Round "03"]
[TimeControl "180+1"]
[Date "2022.04.06"]
[WhiteClock "0:00:13"]
[BlackClock "0:00:57"]

1. e4 {[%clk 0:03:00]}  c5 {[%clk 0:02:58]} 2. Nf3 {[%clk 0:03:00]}  d6 {[%clk 0:02:58]} 3. Bb5+ {[%clk 0:03:00]}  Nd7 {[%clk 0:02:57]} 4. O-O {[%clk 0:02:59]}  a6 {[%clk 0:02:57]} 5. Bxd7+ {[%clk 0:03:00]}  Bxd7 {[%clk 0:02:58]} 6. d4 {[%clk 0:03:00]}  cxd4 {[%clk 0:02:58]} 7. Qxd4 {[%clk 0:03:01]}  Nf6 {[%clk 0:02:47]} 8. a4 {[%clk 0:02:57]}  g6 {[%clk 0:02:44]} 9. c4 {[%clk 0:02:52]}  Bg7 {[%clk 0:02:44]} 10. Nc3 {[%clk 0:02:51]}  O-O {[%clk 0:02:44]} 11. Qd3 {[%clk 0:02:51]}  Bc6 {[%clk 0:02:43]} 12. Nd4 {[%clk 0:02:48]}  Nd7 {[%clk 0:02:41]} 13. Be3 {[%clk 0:02:45]}  Rc8 {[%clk 0:02:40]} 14. Rfd1 {[%clk 0:02:37]}  Qa5 {[%clk 0:02:33]} 15. Nxc6 {[%clk 0:02:07]}  Rxc6 {[%clk 0:02:21]} 16. Nd5 {[%clk 0:01:51]}  Re8 {[%clk 0:02:21]} 17. b4 {[%clk 0:01:49]}  Qd8 {[%clk 0:02:16]} 18. b5 {[%clk 0:01:28]}  axb5 {[%clk 0:02:12]} 19. axb5 {[%clk 0:01:29]}  Bxa1 {[%clk 0:01:55]} 20. bxc6 {[%clk 0:01:29]}  bxc6 {[%clk 0:01:56]} 21. Nxe7+ {[%clk 0:01:19]}  Qxe7 {[%clk 0:01:56]} 22. Rxa1 {[%clk 0:01:20]}  Qxe4 {[%clk 0:01:48]} 23. Qxd6 {[%clk 0:01:16]}  Qe5 {[%clk 0:01:47]} 24. Rd1 {[%clk 0:01:09]}  Qxd6 {[%clk 0:01:46]} 25. Rxd6 {[%clk 0:01:10]}  Ne5 {[%clk 0:01:46]} 26. h3 {[%clk 0:01:08]}  Nxc4 {[%clk 0:01:45]} 27. Rxc6 {[%clk 0:01:08]}  Nxe3 {[%clk 0:01:45]} 28. fxe3 {[%clk 0:01:09]}  Rxe3 {[%clk 0:01:45]} 29. Kf2 {[%clk 0:01:09]}  Ra3 {[%clk 0:01:45]} 30. Rc7 {[%clk 0:01:06]}  h5 {[%clk 0:01:44]} 31. h4 {[%clk 0:01:03]}  Kg7 {[%clk 0:01:43]} 32. g3 {[%clk 0:01:02]}  Kf6 {[%clk 0:01:34]} 33. Rb7 {[%clk 0:00:59]}  Ke6 {[%clk 0:01:31]} 34. Rb6+ {[%clk 0:00:59]}  Kf5 {[%clk 0:01:31]} 35. Rb5+ {[%clk 0:00:59]}  Kg4 {[%clk 0:01:30]} 36. Rb4+ {[%clk 0:00:36]}  Kh3 {[%clk 0:01:30]} 37. Rb7 {[%clk 0:00:37]}  Rxg3 {[%clk 0:01:26]} 38. Rxf7 {[%clk 0:00:37]}  Kxh4 {[%clk 0:01:25]} 39. Rf6 {[%clk 0:00:29]}  g5 {[%clk 0:01:24]} 40. Rf5 {[%clk 0:00:25]}  Ra3 {[%clk 0:01:22]} 41. Rb5 {[%clk 0:00:23]}  Ra2+ {[%clk 0:01:17]} 42. Kg1 {[%clk 0:00:23]}  g4 {[%clk 0:01:16]} 43. Rc5 {[%clk 0:00:21]}  g3 {[%clk 0:01:14]} 44. Rb5 {[%clk 0:00:19]}  Kg4 {[%clk 0:01:14]} 45. Rc5 {[%clk 0:00:19]}  h4 {[%clk 0:01:14]} 46. Rb5 {[%clk 0:00:18]}  Kh3 {[%clk 0:01:12]} 47. Rb1 {[%clk 0:00:17]}  Re2 {[%clk 0:01:05]} 48. Rc1 {[%clk 0:00:15]}  Kg4 {[%clk 0:01:00]} 49. Rc4+ {[%clk 0:00:14]}  Kf3 {[%clk 0:01:00]} 50. Rc3+ {[%clk 0:00:15]}  Re3 {[%clk 0:01:00]} 51. Rc1 {[%clk 0:00:15]}  h3 {[%clk 0:01:00]} 52. Rf1+ {[%clk 0:00:15]}  Ke2 {[%clk 0:00:59]} 53. Ra1 {[%clk 0:00:14]}  Rd3 {[%clk 0:00:57]} 54. Ra2+ {[%clk 0:00:13]}  Rd2 {[%clk 0:00:57]} 0-1


[Site "https://www.chess.com"]

[Event "Titled Tuesday Blitz April 05 Late 2022"]
[White "Petrovic, Aleksa"]
[Black "Leiva, Gianmarco"]
[WhiteFideId "967629"]
[BlackFideId "3804399"]
[WhiteElo "2198"]
[BlackElo "2323"]
[Result "0-1"]
[Round "03"]
[TimeControl "180+1"]
[Date "2022.04.06"]
[WhiteClock "0:00:36"]
[BlackClock "0:01:23"]

1. d4 {[%clk 0:03:00]}  Nf6 {[%clk 0:03:00]} 2. Nf3 {[%clk 0:03:00]}  e6 {[%clk 0:03:00]} 3. c4 {[%clk 0:02:59]}  d5 {[%clk 0:03:01]} 4. Nc3 {[%clk 0:02:58]}  a6 {[%clk 0:03:02]} 5. cxd5 {[%clk 0:02:44]}  exd5 {[%clk 0:03:02]} 6. Bg5 {[%clk 0:02:44]}  Be6 {[%clk 0:03:03]} 7. Qb3 {[%clk 0:02:43]}  Ra7 {[%clk 0:03:03]} 8. e3 {[%clk 0:02:43]}  Nbd7 {[%clk 0:03:01]} 9. Be2 {[%clk 0:02:40]}  c5 {[%clk 0:02:28]} 10. dxc5 {[%clk 0:02:37]}  d4 {[%clk 0:02:27]} 11. Qc2 {[%clk 0:02:02]}  dxc3 {[%clk 0:02:26]} 12. b4 {[%clk 0:02:03]}  a5 {[%clk 0:02:23]} 13. Nd4 {[%clk 0:01:58]}  axb4 {[%clk 0:02:17]} 14. c6 {[%clk 0:01:50]}  bxc6 {[%clk 0:01:55]} 15. Nxc6 {[%clk 0:01:46]}  Qb6 {[%clk 0:01:55]} 16. Nxa7 {[%clk 0:01:46]}  Qxa7 {[%clk 0:01:56]} 17. O-O {[%clk 0:01:36]}  Be7 {[%clk 0:01:52]} 18. a3 {[%clk 0:01:35]}  bxa3 {[%clk 0:01:47]} 19. Rfd1 {[%clk 0:01:21]}  O-O {[%clk 0:01:45]} 20. Bb5 {[%clk 0:01:20]}  Nc5 {[%clk 0:01:33]} 21. h3 {[%clk 0:00:48]}  Bb3 {[%clk 0:01:29]} 22. Qxc3 {[%clk 0:00:45]}  Nfe4 {[%clk 0:01:27]} 23. Qe5 {[%clk 0:00:36]}  Bxg5 {[%clk 0:01:23]} 0-1


[Site "https://www.chess.com"]

[Event "Titled Tuesday Blitz April 05 Late 2022"]
[White "Przybylski, Wojciech"]
[Black "Karttunen, Mika"]
[WhiteFideId "1117599"]
[BlackFideId "502081"]
[WhiteElo "2133"]
[BlackElo "2343"]
[Result "0-1"]
[Round "03"]
[TimeControl "180+1"]
[Date "2022.04.06"]
[WhiteClock "0:00:06"]
[BlackClock "0:00:27"]

1. e4 {[%clk 0:02:59]}  c5 {[%clk 0:02:56]} 2. Nf3 {[%clk 0:02:59]}  d6 {[%clk 0:02:55]} 3. d4 {[%clk 0:02:58]}  cxd4 {[%clk 0:02:55]} 4. Nxd4 {[%clk 0:02:58]}  Nf6 {[%clk 0:02:56]} 5. Nc3 {[%clk 0:02:59]}  a6 {[%clk 0:02:56]} 6. h3 {[%clk 0:02:59]}  e5 {[%clk 0:02:56]} 7. Nde2 {[%clk 0:02:59]}  h5 {[%clk 0:02:56]} 8. Nd5 {[%clk 0:03:00]}  Nxd5 {[%clk 0:02:38]} 9. Qxd5 {[%clk 0:02:59]}  Nc6 {[%clk 0:02:38]} 10. Be3 {[%clk 0:02:56]}  Be6 {[%clk 0:02:38]} 11. Qd2 {[%clk 0:02:56]}  d5 {[%clk 0:02:37]} 12. exd5 {[%clk 0:02:55]}  Qxd5 {[%clk 0:02:37]} 13. Qxd5 {[%clk 0:02:51]}  Bxd5 {[%clk 0:02:38]} 14. Nc3 {[%clk 0:02:51]}  Bb4 {[%clk 0:02:37]} 15. O-O-O {[%clk 0:02:51]}  Be6 {[%clk 0:02:30]} 16. Nd5 {[%clk 0:02:51]}  Ba5 {[%clk 0:01:55]} 17. Nb6 {[%clk 0:01:38]}  Bxb6 {[%clk 0:01:19]} 18. Bxb6 {[%clk 0:01:37]}  Rc8 {[%clk 0:01:20]} 19. a3 {[%clk 0:01:24]}  O-O {[%clk 0:01:10]} 20. Be2 {[%clk 0:01:22]}  Bf5 {[%clk 0:01:01]} 21. c3 {[%clk 0:01:01]}  g6 {[%clk 0:00:41]} 22. g4 {[%clk 0:00:59]}  hxg4 {[%clk 0:00:39]} 23. hxg4 {[%clk 0:00:58]}  Be6 {[%clk 0:00:39]} 24. Be3 {[%clk 0:00:38]}  Na5 {[%clk 0:00:38]} 25. Bh6 {[%clk 0:00:31]}  Rfd8 {[%clk 0:00:38]} 26. Bg5 {[%clk 0:00:30]}  Rxd1+ {[%clk 0:00:35]} 27. Rxd1 {[%clk 0:00:18]}  Kg7 {[%clk 0:00:34]} 28. Bf3 {[%clk 0:00:18]}  f6 {[%clk 0:00:34]} 29. Be3 {[%clk 0:00:18]}  Kf7 {[%clk 0:00:33]} 30. Bb6 {[%clk 0:00:15]}  Nc4 {[%clk 0:00:33]} 31. Ba7 {[%clk 0:00:12]}  Rc7 {[%clk 0:00:33]} 32. Bb8 {[%clk 0:00:10]}  Re7 {[%clk 0:00:33]} 33. Bd6 {[%clk 0:00:10]}  Rd7 {[%clk 0:00:34]} 34. Bc5 {[%clk 0:00:09]}  Rc7 {[%clk 0:00:33]} 35. Ba7 {[%clk 0:00:07]}  b5 {[%clk 0:00:33]} 36. Be3 {[%clk 0:00:06]}  a5 {[%clk 0:00:32]} 37. Be2 {[%clk 0:00:07]}  Nxe3 {[%clk 0:00:31]} 38. fxe3 {[%clk 0:00:07]}  b4 {[%clk 0:00:32]} 39. axb4 {[%clk 0:00:06]}  axb4 {[%clk 0:00:33]} 40. Kc2 {[%clk 0:00:07]}  b3+ {[%clk 0:00:31]} 41. Kc1 {[%clk 0:00:06]}  Ra7 {[%clk 0:00:31]} 42. Rd6 {[%clk 0:00:06]}  Ra1+ {[%clk 0:00:30]} 43. Kd2 {[%clk 0:00:06]}  Rb1 {[%clk 0:00:31]} 44. Rb6 {[%clk 0:00:06]}  Rxb2+ {[%clk 0:00:31]} 45. Kd1 {[%clk 0:00:06]}  Rb1+ {[%clk 0:00:31]} 46. Kd2 {[%clk 0:00:07]}  f5 {[%clk 0:00:29]} 47. gxf5 {[%clk 0:00:05]}  gxf5 {[%clk 0:00:30]} 48. Bd3 {[%clk 0:00:05]}  Rg1 {[%clk 0:00:25]} 49. c4 {[%clk 0:00:06]}  e4 {[%clk 0:00:23]} 50. Rb7+ {[%clk 0:00:05]}  Kf6 {[%clk 0:00:23]} 51. Be2 {[%clk 0:00:05]}  Rg2 {[%clk 0:00:24]} 52. Rb4 {[%clk 0:00:04]}  b2 {[%clk 0:00:23]} 53. Ke1 {[%clk 0:00:03]}  Rg1+ {[%clk 0:00:21]} 54. Bf1 {[%clk 0:00:03]}  b1=Q+ {[%clk 0:00:21]} 55. Rxb1 {[%clk 0:00:03]}  Bxc4 {[%clk 0:00:22]} 56. Kf2 {[%clk 0:00:03]}  Rxf1+ {[%clk 0:00:21]} 57. Rxf1 {[%clk 0:00:04]}  Bxf1 {[%clk 0:00:21]} 58. Kxf1 {[%clk 0:00:05]}  Kg5 {[%clk 0:00:22]} 59. Kf2 {[%clk 0:00:05]}  Kh4 {[%clk 0:00:22]} 60. Kg2 {[%clk 0:00:04]}  Kg4 {[%clk 0:00:23]} 61. Kf2 {[%clk 0:00:04]}  Kh3 {[%clk 0:00:23]} 62. Kf1 {[%clk 0:00:04]}  Kg3 {[%clk 0:00:24]} 63. Ke2 {[%clk 0:00:05]}  Kg2 {[%clk 0:00:25]} 64. Ke1 {[%clk 0:00:05]}  Kf3 {[%clk 0:00:25]} 65. Kd2 {[%clk 0:00:05]}  Kf2 {[%clk 0:00:26]} 66. Kd1 {[%clk 0:00:06]}  Kxe3 {[%clk 0:00:27]} 67. Ke1 {[%clk 0:00:06]}  f4 {[%clk 0:00:27]} 0-1


[Site "https://www.chess.com"]

[Event "Titled Tuesday Blitz April 05 Late 2022"]
[White "Rytenko, Vsevolod"]
[Black "Kamsky, Gata"]
[WhiteFideId "14133040"]
[BlackFideId "2000024"]
[WhiteElo "2120"]
[BlackElo "2645"]
[Result "0-1"]
[Round "03"]
[TimeControl "180+1"]
[Date "2022.04.05"]
[WhiteClock "0:01:07"]
[BlackClock "0:00:56"]

1. d4 {[%clk 0:03:00]}  f5 {[%clk 0:02:55]} 2. Nc3 {[%clk 0:02:59]}  Nf6 {[%clk 0:02:54]} 3. Bg5 {[%clk 0:03:00]}  d5 {[%clk 0:02:54]} 4. Bxf6 {[%clk 0:03:00]}  exf6 {[%clk 0:02:54]} 5. e3 {[%clk 0:03:01]}  Be6 {[%clk 0:02:55]} 6. Bd3 {[%clk 0:03:01]}  Nc6 {[%clk 0:02:54]} 7. h4 {[%clk 0:03:01]}  h5 {[%clk 0:02:39]} 8. Nh3 {[%clk 0:02:59]}  Bd6 {[%clk 0:02:31]} 9. Qf3 {[%clk 0:02:57]}  g6 {[%clk 0:02:23]} 10. Nf4 {[%clk 0:02:56]}  Bxf4 {[%clk 0:02:21]} 11. Qxf4 {[%clk 0:02:57]}  a6 {[%clk 0:02:03]} 12. f3 {[%clk 0:02:53]}  Qd6 {[%clk 0:01:53]} 13. Qxd6 {[%clk 0:02:52]}  cxd6 {[%clk 0:01:53]} 14. a3 {[%clk 0:02:51]}  Bf7 {[%clk 0:01:50]} 15. Ne2 {[%clk 0:02:50]}  b5 {[%clk 0:01:48]} 16. Kd2 {[%clk 0:02:50]}  Kd7 {[%clk 0:01:43]} 17. Nf4 {[%clk 0:02:49]}  Ne7 {[%clk 0:01:40]} 18. Rag1 {[%clk 0:02:46]}  Rh6 {[%clk 0:01:35]} 19. g4 {[%clk 0:02:46]}  hxg4 {[%clk 0:01:35]} 20. fxg4 {[%clk 0:02:46]}  fxg4 {[%clk 0:01:32]} 21. Rxg4 {[%clk 0:02:46]}  g5 {[%clk 0:01:31]} 22. Ne2 {[%clk 0:02:00]}  Rah8 {[%clk 0:01:23]} 23. a4 {[%clk 0:01:52]}  Rxh4 {[%clk 0:01:12]} 24. Rgxh4 {[%clk 0:01:52]}  Rxh4 {[%clk 0:01:11]} 25. Rxh4 {[%clk 0:01:50]}  gxh4 {[%clk 0:01:12]} 26. axb5 {[%clk 0:01:51]}  a5 {[%clk 0:01:08]} 27. Nf4 {[%clk 0:01:49]}  Kc7 {[%clk 0:01:05]} 28. Ke2 {[%clk 0:01:35]}  Kb6 {[%clk 0:01:04]} 29. Kf3 {[%clk 0:01:35]}  Be8 {[%clk 0:01:03]} 30. Kg4 {[%clk 0:01:31]}  Bxb5 {[%clk 0:01:03]} 31. Kxh4 {[%clk 0:01:30]}  Bxd3 {[%clk 0:01:02]} 32. Nxd3 {[%clk 0:01:29]}  Nf5+ {[%clk 0:01:02]} 33. Kh5 {[%clk 0:01:27]}  Nxe3 {[%clk 0:01:02]} 34. Kg6 {[%clk 0:01:27]}  Nxc2 {[%clk 0:01:01]} 35. Kxf6 {[%clk 0:01:27]}  Nxd4 {[%clk 0:01:01]} 36. Ke7 {[%clk 0:01:22]}  Kc6 {[%clk 0:00:59]} 37. Nf4 {[%clk 0:01:14]}  Nb3 {[%clk 0:00:56]} 38. Ke6 {[%clk 0:01:12]}  Nc5+ {[%clk 0:00:56]} 39. Kf5 {[%clk 0:01:11]}  d4 {[%clk 0:00:56]} 40. Ne2 {[%clk 0:01:08]}  Kd5 {[%clk 0:00:55]} 41. Kf4 {[%clk 0:01:07]}  Nd3+ {[%clk 0:00:56]} 0-1


[Site "https://www.chess.com"]

[Event "Titled Tuesday Blitz April 05 Late 2022"]
[White "Sadovsky, Artem"]
[Black "Zhigalko, Sergei"]
[WhiteFideId "4155840"]
[BlackFideId "13502956"]
[WhiteElo "2314"]
[BlackElo "2662"]
[Result "0-1"]
[Round "03"]
[TimeControl "180+1"]
[Date "2022.04.06"]
[WhiteClock "0:00:02"]
[BlackClock "0:00:39"]

1. c4 {[%clk 0:03:00]}  e5 {[%clk 0:03:00]} 2. g3 {[%clk 0:03:00]}  Nf6 {[%clk 0:03:00]} 3. Bg2 {[%clk 0:03:00]}  c6 {[%clk 0:03:01]} 4. Nf3 {[%clk 0:02:57]}  d6 {[%clk 0:03:01]} 5. O-O {[%clk 0:02:55]}  Be7 {[%clk 0:03:01]} 6. c5 {[%clk 0:02:49]}  O-O {[%clk 0:02:56]} 7. cxd6 {[%clk 0:02:49]}  Qxd6 {[%clk 0:02:57]} 8. d3 {[%clk 0:02:47]}  h6 {[%clk 0:02:56]} 9. Nbd2 {[%clk 0:02:44]}  Nbd7 {[%clk 0:02:52]} 10. Nc4 {[%clk 0:02:42]}  Qc7 {[%clk 0:02:52]} 11. Nfxe5 {[%clk 0:02:26]}  Nxe5 {[%clk 0:02:40]} 12. Bf4 {[%clk 0:02:26]}  Nfd7 {[%clk 0:02:06]} 13. d4 {[%clk 0:02:11]}  Bf6 {[%clk 0:01:58]} 14. dxe5 {[%clk 0:02:10]}  Nxe5 {[%clk 0:01:58]} 15. Qc2 {[%clk 0:01:43]}  Be6 {[%clk 0:01:53]} 16. Nxe5 {[%clk 0:01:39]}  Bxe5 {[%clk 0:01:53]} 17. Bxe5 {[%clk 0:01:40]}  Qxe5 {[%clk 0:01:54]} 18. Rad1 {[%clk 0:01:33]}  Rad8 {[%clk 0:01:47]} 19. a3 {[%clk 0:01:30]}  Qb5 {[%clk 0:01:44]} 20. b4 {[%clk 0:01:21]}  a5 {[%clk 0:01:42]} 21. Rb1 {[%clk 0:00:40]}  a4 {[%clk 0:01:31]} 22. Bf3 {[%clk 0:00:30]}  Bf5 {[%clk 0:01:12]} 23. e4 {[%clk 0:00:29]}  Be6 {[%clk 0:01:13]} 24. Be2 {[%clk 0:00:28]}  Qe5 {[%clk 0:01:03]} 25. f4 {[%clk 0:00:12]}  Qd4+ {[%clk 0:01:00]} 26. Rf2 {[%clk 0:00:13]}  Bb3 {[%clk 0:01:01]} 27. Qb2 {[%clk 0:00:11]}  Qxe4 {[%clk 0:01:01]} 28. Bf3 {[%clk 0:00:09]}  Qe3 {[%clk 0:01:01]} 29. Kg2 {[%clk 0:00:06]}  Rd3 {[%clk 0:00:53]} 30. Rbf1 {[%clk 0:00:02]}  Rfd8 {[%clk 0:00:47]} 31. Qe5 {[%clk 0:00:02]}  Qxe5 {[%clk 0:00:40]} 32. fxe5 {[%clk 0:00:03]}  Be6 {[%clk 0:00:41]} 33. b5 {[%clk 0:00:02]}  cxb5 {[%clk 0:00:40]} 34. Bxb7 {[%clk 0:00:03]}  Rxa3 {[%clk 0:00:40]} 35. Bc6 {[%clk 0:00:03]}  Rb3 {[%clk 0:00:40]} 36. Rf4 {[%clk 0:00:02]}  a3 {[%clk 0:00:39]} 37. Ra1 {[%clk 0:00:02]}  b4 {[%clk 0:00:39]} 38. Raf1 {[%clk 0:00:01]}  Rb2+ {[%clk 0:00:39]} 39. R1f2 {[%clk 0:00:02]}  Rxf2+ {[%clk 0:00:39]} 40. Rxf2 {[%clk 0:00:02]}  a2 {[%clk 0:00:39]} 0-1


[Site "https://www.chess.com"]

[Event "Titled Tuesday Blitz April 05 Late 2022"]
[White "Saldano Dayer, Horacio"]
[Black "Baker, Chris W"]
[WhiteFideId "103411"]
[BlackFideId "401676"]
[WhiteElo "2419"]
[BlackElo "2152"]
[Result "1-0"]
[Round "03"]
[TimeControl "180+1"]
[Date "2022.04.06"]
[WhiteClock "0:01:49"]
[BlackClock "0:01:30"]

1. Nf3 {[%clk 0:03:00]}  Nf6 {[%clk 0:02:58]} 2. g3 {[%clk 0:03:00]}  d5 {[%clk 0:02:57]} 3. Bg2 {[%clk 0:02:59]}  c6 {[%clk 0:02:55]} 4. O-O {[%clk 0:02:59]}  Bf5 {[%clk 0:02:51]} 5. d3 {[%clk 0:02:58]}  h6 {[%clk 0:02:51]} 6. Nbd2 {[%clk 0:02:57]}  e6 {[%clk 0:02:50]} 7. b3 {[%clk 0:02:58]}  Be7 {[%clk 0:02:48]} 8. Bb2 {[%clk 0:02:57]}  Nbd7 {[%clk 0:02:46]} 9. Qe1 {[%clk 0:02:56]}  Bh7 {[%clk 0:02:45]} 10. e4 {[%clk 0:02:56]}  O-O {[%clk 0:02:36]} 11. Qe2 {[%clk 0:02:51]}  a5 {[%clk 0:02:34]} 12. a4 {[%clk 0:02:46]}  Re8 {[%clk 0:02:26]} 13. e5 {[%clk 0:02:42]}  Nh5 {[%clk 0:02:22]} 14. Nd4 {[%clk 0:02:31]}  g6 {[%clk 0:02:17]} 15. f4 {[%clk 0:02:16]}  Ng7 {[%clk 0:02:12]} 16. g4 {[%clk 0:02:10]}  f5 {[%clk 0:01:55]} 17. h3 {[%clk 0:01:59]}  Qb6 {[%clk 0:01:47]} 18. Kh1 {[%clk 0:01:57]}  c5 {[%clk 0:01:40]} 19. Nb5 {[%clk 0:01:54]}  d4 {[%clk 0:01:35]} 20. Nc4 {[%clk 0:01:51]}  Rf8 {[%clk 0:01:30]} 21. Nxb6 {[%clk 0:01:49]} 1-0


[Site "https://www.chess.com"]

[Event "Titled Tuesday Blitz April 05 Late 2022"]
[White "Sanchez, Robert"]
[Black "Reprintsev, Alexander"]
[WhiteFideId "2034360"]
[BlackFideId "14100541"]
[WhiteElo "2333"]
[BlackElo "2108"]
[Result "1-0"]
[Round "03"]
[TimeControl "180+1"]
[Date "2022.04.06"]
[WhiteClock "0:00:44"]
[BlackClock "0:01:04"]

1. e4 {[%clk 0:03:00]}  d5 {[%clk 0:02:59]} 2. exd5 {[%clk 0:02:59]}  Qxd5 {[%clk 0:02:59]} 3. Nc3 {[%clk 0:03:00]}  Qa5 {[%clk 0:02:59]} 4. Nf3 {[%clk 0:03:00]}  Nf6 {[%clk 0:02:59]} 5. Be2 {[%clk 0:03:00]}  Nc6 {[%clk 0:02:59]} 6. O-O {[%clk 0:03:01]}  Bg4 {[%clk 0:02:59]} 7. h3 {[%clk 0:03:00]}  Bh5 {[%clk 0:02:58]} 8. a3 {[%clk 0:03:01]}  e6 {[%clk 0:02:58]} 9. d3 {[%clk 0:03:01]}  O-O-O {[%clk 0:02:58]} 10. Bd2 {[%clk 0:03:01]}  Qc5 {[%clk 0:02:45]} 11. b4 {[%clk 0:02:57]}  Qe7 {[%clk 0:02:45]} 12. b5 {[%clk 0:02:54]}  Bxf3 {[%clk 0:02:42]} 13. bxc6 {[%clk 0:02:49]}  Bxc6 {[%clk 0:02:40]} 14. Rb1 {[%clk 0:02:49]}  h6 {[%clk 0:02:36]} 15. Bf3 {[%clk 0:02:48]}  Bxf3 {[%clk 0:02:33]} 16. Qxf3 {[%clk 0:02:48]}  Nd5 {[%clk 0:02:34]} 17. Nxd5 {[%clk 0:02:42]}  exd5 {[%clk 0:02:32]} 18. Rfe1 {[%clk 0:02:41]}  Qd7 {[%clk 0:02:30]} 19. c4 {[%clk 0:02:38]}  Bc5 {[%clk 0:02:27]} 20. Rb5 {[%clk 0:02:29]}  b6 {[%clk 0:02:11]} 21. a4 {[%clk 0:02:18]}  c6 {[%clk 0:02:08]} 22. Rbb1 {[%clk 0:02:17]}  Rhe8 {[%clk 0:02:05]} 23. Bf4 {[%clk 0:02:08]}  g5 {[%clk 0:02:02]} 24. Bg3 {[%clk 0:02:07]}  Kb7 {[%clk 0:02:01]} 25. a5 {[%clk 0:02:00]}  f5 {[%clk 0:02:01]} 26. Be5 {[%clk 0:01:54]}  f4 {[%clk 0:02:00]} 27. axb6 {[%clk 0:01:52]}  axb6 {[%clk 0:01:59]} 28. d4 {[%clk 0:01:52]}  Bf8 {[%clk 0:01:46]} 29. c5 {[%clk 0:01:50]}  b5 {[%clk 0:01:45]} 30. Ra1 {[%clk 0:01:44]}  Ra8 {[%clk 0:01:46]} 31. Rab1 {[%clk 0:01:31]}  Bg7 {[%clk 0:01:44]} 32. Bxg7 {[%clk 0:01:26]}  Qxg7 {[%clk 0:01:44]} 33. Rxe8 {[%clk 0:01:19]}  Rxe8 {[%clk 0:01:43]} 34. Rxb5+ {[%clk 0:01:20]}  cxb5 {[%clk 0:01:35]} 35. Qxd5+ {[%clk 0:01:19]}  Kc7 {[%clk 0:01:35]} 36. Qd6+ {[%clk 0:01:13]}  Kc8 {[%clk 0:01:35]} 37. Qc6+ {[%clk 0:01:08]}  Kd8 {[%clk 0:01:35]} 38. d5 {[%clk 0:01:02]}  Qc7 {[%clk 0:01:32]} 39. Qxb5 {[%clk 0:00:57]}  Re1+ {[%clk 0:01:28]} 40. Kh2 {[%clk 0:00:57]}  f3+ {[%clk 0:01:26]} 41. d6 {[%clk 0:00:58]}  Qa7 {[%clk 0:01:18]} 42. c6 {[%clk 0:00:51]}  fxg2 {[%clk 0:01:05]} 43. c7+ {[%clk 0:00:44]}  Kc8 {[%clk 0:01:04]} 44. Qf5+ {[%clk 0:00:44]} 1-0


[Site "https://www.chess.com"]